Cogmind - Beta 17 @@@ ROGUE MODE // 2026.07.08 @ 20:25:53 Player: IsAway Result: Destroyed by S-10 Pest with Light Assault Rifle Performance ------------- Evolutions (0) 0 Regions Visited (1) 200 Robots Destroyed (4) 20 Value Destroyed (40) 40 Prototype IDs (0) 0 Alien Tech Used (0) 0 Bonus (0) 0 TOTAL SCORE: 260 Bonus ------- None Cogmind --------- Core Integrity 0/250 Matter 300/300 Energy 100/100 System Corruption 3% Temperature Cool (0) Movement Core (100) Ox1 Location -10/Materials Parts ------- > --- POWER (1) -------- (None) > --- PROPULSION (2) --- (None) > --- UTILITY (2) ------ Small Storage Unit > --- WEAPON (2) ------- (None) > --- INVENTORY (8) ---- Sensor Array Signal Interpreter Seismic Detector Assault Rifle Peak State ------------ > --- POWER ------------ Ion Engine > --- PROPULSION ------- Wheel Compact Wheel > --- UTILITY ---------- Small Storage Unit Seismic Detector > --- WEAPON ----------- Assault Rifle Assault Rifle > --- INVENTORY -------- (None) [Rating: 7] Favorites ----------- Power Ion Engine Engine Ion Engine Propulsion Compact Wheel Wheel Compact Wheel Utility Small Storage Unit Device Seismic Detector Storage Small Storage Unit Weapon Assault Rifle Ballistic Gun Assault Rifle Special Weapon Mining Laser Build | -11 -10 ------- Run | Yrd Mat Slots Evolved . | . . Power . | . . Propulsion . | . . Utility . | . . Weapon . | . . Parts Attached 9 | 8 1 Power 1 | 1 . Engine 1 | 1 . Core . | . . Reactor . | . . Propulsion 3 | 2 1 Treads . | . . Leg . | . . Wheel 3 | 2 1 Hover . | . . Flight . | . . Utility 2 | 2 . Device 1 | 1 . Storage 1 | 1 . Processor . | . . Hackware . | . . Protection . | . . Artifact . | . . Weapon 3 | 3 . Energy Gun . | . . Energy Cannon . | . . Ballistic Gun 2 | 2 . Ballistic Cannon . | . . Launcher . | . . Special Weapon 1 | 1 . Impact Weapon . | . . Slashing Weapon . | . . Piercing Weapon . | . . Special Melee Weapon . | . . Unidentified Prototypes . | . . Parts Lost 7 | . 7 Power 1 | . 1 Propulsion 3 | . 3 Utility 1 | . 1 Weapon 2 | . 2 Highest Loss Streak 7 | . 7 To Critical Strikes . | . . Average Backups 2 | . 4 Power . | . . Propulsion . | . . Utility 1 | . 2 Weapon . | . 1 Tool/Special . | . . Unused Backups 3 | . 3 Power . | . . Propulsion . | . . Utility 3 | . 3 Weapon . | . . Tool/Special . | . . Average Slot Usage (%) 81 | . 81 Engine 11 | . 11 Wheel 25 | . 25 Device 7 | . 7 Storage 14 | . 14 Ballistic Gun 12 | . 12 Special Weapon 9 | . 9 Peak Build Rating 7 | 7 7 Average Rating 5 | 5 5 On Entrance 3 | . 7 Avg Prop Armor Cover (%) . | . . Naked Turns . | . . Heaviest Build 15 | 15 14 Greatest Support 26 | 26 26 Greatest Overweight (x) 1 | . 1 Average Overweight (x) . | . . Largest Inventory Capacity 8 | 8 8 Average Capacity 7 | 7 8 Most Carried 5 | 3 5 Average Carried 2 | . 4 Final Capacity 8 | 8 8 Final Carried 4 | 3 4 Class Distribution -------------------- 100% | Mutant Dominant Class ---------------- Mutant | -10/Materials Resources | -11 -10 ----------- Run | Yrd Mat Matter Collected 361 | 304 57 Remotely . | . . Salvage Created 132 | 121 11 Parts 6 | 4 2 Haulers Intercepted . | . . Recyclers Shooed 1 | . 1 Parts Field Recycled . | . . Retrieved Matter . | . . Parts Self-Destructed . | . . Prevented . | . . Parts Restored . | . . Kills | -11 -10 ------- Run | Yrd Mat Combat Hostiles Destroyed 1 | . 1 Guns 1 | . 1 Classes Destroyed 3 | 2 1 Tunneler 2 | 2 . Recycler 1 | 1 . Swarmer 1 | . 1 Best Kill Streak 3 | 3 1 Combat Bots Only 1 | . 1 Max Kills in Single Turn 1 | 1 1 Gunslinging . | . . Exploded . | . . Melee . | . . Uniques/NPCs Destroyed . | . . Combat | -11 -10 -------- Run | Yrd Mat Hostile Shots Fired 104 | . 104 Missed 38 | . 38 Hits 66 | . 66 Projectile 66 | . 66 Critical Strikes 2 | . 2 Damage Taken 623 | . 623 Core 258 | . 258 Absorbed by Shields . | . . Core Remaining (%) 100 | 100 . Volleys Fired 24 | 12 12 Largest 2 | 2 1 Hottest 100 | 40 100 Shots Fired 36 | 24 12 Gun 31 | 24 7 Cannon . | . . Launcher . | . . Special 5 | . 5 Kinetic 31 | 24 7 Thermal 5 | . 5 Explosive . | . . Electromagnetic . | . . Robot Hit Streak 5 | 5 5 Robot Miss Streak 2 | 2 2 Penetration Max . | . . Secondary Targets . | . . Shots Hit Robots 17 | 13 4 Core Hits 5 | 4 1 Critical Kills . | . . Critical Parts Destroyed . | . . Critical Strikes . | . . Melee Attacks . | . . Impact . | . . Slashing . | . . Piercing . | . . Sneak Attacks . | . . Combat Hostiles . | . . Follow-up Attacks . | . . Damage Inflicted 239 | 177 62 Guns 227 | 177 50 Cannons . | . . Explosions . | . . Melee . | . . Ramming 12 | . 12 Kinetic 227 | 177 50 Thermal . | . . Explosive . | . . Electromagnetic . | . . Impact . | . . Slashing . | . . Piercing . | . . Highest Corruption 3 | . 3 Average Corruption 3 | . 3 Corruption Purged . | . . Corruption Blocked . | . . Effects 1 | . 1 Alerts 1 | . 1 Overload Shots . | . . Overflow Damage . | . . Projectiles . | . . Explosions . | . . Melee . | . . Knockbacks 1 | . 1 Impact 1 | . 1 Kinetic . | . . Secondary . | . . Self-Inflicted Damage 6 | . 6 Shots . | . . Rammed 1 | . 1 Targets Rammed 1 | . 1 Kicked . | . . Crushed . | . . Highest Temperature 60 | 6 60 Average Temperature 23 | 6 24 Received Heat Transfer 177 | . 177 Siege Activations . | . . Martial Activations . | . . Shielding Activations . | . . Robots Disrupted . | . . Combat Hostiles . | . . Robots Corrupted . | . . Combat Hostiles . | . . Parts Fried . | . . Impact Corruptions . | . . Robots Melted . | . . Combat Hostiles . | . . Parts Melted . | . . Heat Transferred . | . . Parts Sabotaged . | . . Parts Stolen . | . . Parts Stripped . | . . Power Chain Reactions . | . . Alert | -11 -10 ------- Run | Yrd Mat Maximum Alert Level . | . . Low Security (%) 100 | 100 100 Level 1 . | . . Level 2 . | . . Level 3 . | . . Level 4 . | . . Level 5 . | . . High Security . | . . Max Security . | . . Peak Influence 25 | 10 25 Initial . | . . Average 3 | 1 4 Influence Increases 67 | 15 52 Destroy 0b10 Robot/C 20 | . 20 Destroy 0b10 Robot/NC 15 | 15 . Disable Machine 15 | . 15 Destroy Structure 2 | . 2 Lose Combat Pursuer 15 | . 15 Influence Decreases 67 | 15 52 Time Decay 52 | 15 37 Lost Part 15 | . 15 Squads Dispatched 1 | . 1 Investigation . | . . Extermination . | . . Reinforcement 1 | . 1 Assault . | . . Garrison . | . . Intercept . | . . Searches Triggered . | . . Construction Impeded . | . . Haulers Reinforced . | . . Active Scanning Responses . | . . Cargo Convoy Interrupts . | . . Stealth | -11 -10 --------- Run | Yrd Mat Distress Signals . | . . Communications Jammed . | . . Distress Signals . | . . Times Spotted 10 | . 10 Peak Tracking Total 7 | . 7 Tactical Retreats 1 | . 1 Traps | -11 -10 ------- Run | Yrd Mat Traps Triggered . | . . Indirectly . | . . Trap Hack Attempts . | . . Triggered . | . . Disarmed . | . . Reprogrammed . | . . Reused . | . . Traps Extracted . | . . Installed . | . . Triggered . | . . Machines | -11 -10 ---------- Run | Yrd Mat Machines Disabled 1 | . 1 Max in Single Turn 1 | . 1 Machines Repaired . | . . Machines Dismantled . | . . Machines Sabotaged . | . . Overloaded Fab Kills . | . . Hacking | -11 -10 --------- Run | Yrd Mat Machines Accessed 3 | . 3 Terminals 3 | . 3 Fabricators . | . . Repair Stations . | . . Recycling Units . | . . Scanalyzers . | . . Garrison Access . | . . Total Hacks 6 | . 6 Successful . | . . Failed 6 | . 6 Catastrophic 1 | . 1 Database Lockouts . | . . Manual 5 | . 5 Terminals 6 | . 6 Fabricators . | . . Repair Stations . | . . Recycling Units . | . . Scanalyzers . | . . Garrison Access . | . . Terminal Hacks . | . . Fabricator Hacks . | . . Repair Station Hacks . | . . Recycling Unit Hacks . | . . Scanalyzer . | . . Garrison Access Hacks . | . . Unauthorized Hacks . | . . Terminals . | . . Fabricators . | . . Repair Stations . | . . Recycling Units . | . . Scanalyzers . | . . Garrison Access . | . . Data Cores Recovered . | . . Used . | . . Hacking Detections 3 | . 3 Full Trace Events . | . . Feedback Events . | . . Feedback Blocked . | . . Robot Schematics Acquired . | . . Robots Built . | . . Authchips . | . . Time . | . . Total Robot Build Rating . | . . Part Schematics Acquired . | . . Parts Built . | . . Authchips . | . . Time . | . . Total Part Build Rating . | . . Part Studies Acquired . | . . Parts Repaired . | . . Time . | . . Parts Recycled . | . . Recycled Matter . | . . Retrieved Matter . | . . Retrieved Components . | . . Parts Scanalyzed . | . . Part Schematics Acquired . | . . Parts Damaged . | . . Bothacking | -11 -10 ------------ Run | Yrd Mat Used RIF Installer . | . . Robots Hacked . | . . Non-combat . | . . Combat . | . . Robot Hacks Applied . | . . Relay Couplers Released . | . . Fabnet Peak Effective % . | . . Robots Rewired . | . . Allies Hacked . | . . Hacks Repelled . | . . Allies | -11 -10 -------- Run | Yrd Mat Total Allies . | . . Largest Group . | . . Highest-Rated Group . | . . Highest-Rated Ally . | . . Total Orders . | . . Ally Attacks . | . . Total Damage . | . . Kills . | . . Allies Corrupted . | . . Allies Melted . | . . Intel | -11 -10 ------- Run | Yrd Mat Active Infowar (turns) 89 | 18 71 Seismic 89 | 18 71 Robot Analysis Total . | . . Derelict Logs Recovered . | . . Drone Launches . | . . Drone Recoveries . | . . Exploration | -11 -10 ------------- Run | Yrd Mat Turns Passed 242 | 97 145 Spaces Moved 163 | 53 110 Core 11 | 4 7 Treads . | . . Legs . | . . Wheels 152 | 49 103 Hover . | . . Flight . | . . Fastest Speed 50 | 50 90 Average Speed 89 | 86 91 Slowest Speed 100 | 90 100 Overloaded Moves . | . . Propulsion Burnouts . | . . Robots Hopped . | . . Potential Cave-ins . | . . Cave-ins Triggered . | . . Exploration Rate (%) 18 | 3 34 Regions Visited 1 Branch Regions . Pre-discovered Areas . | . . Known Exits Taken . | . . Unknown Exits Taken 1 | 1 . Scrap Searched . | . . Spaces Dug 2 | . 2 Terrain Destroyed 2 | . 2 Melee . | . . Projectile 2 | . 2 AOE . | . . Terrain Rammed . | . . Walls Destroyed . | . . Machines Disabled . | . . Actions | -11 -10 --------- Run | Yrd Mat Total 207 | 75 132 Wait 6 | . 6 Move 162 | 52 110 Hop . | . . Pick Up 5 | 3 2 Fast Attach 7 | 7 . Attach 1 | . 1 Detach . | . . Swap 1 | 1 . Drop . | . . Fire 24 | 12 12 Melee . | . . Ram 1 | . 1 Kick . | . . Crush . | . . Escape Stasis . | . . Rewire . | . . Trap . | . . Miscellaneous . | . . Route ------- -11/Scrapyard -10/Materials History --------- Turn | Location | Event 20 | -11/Scrapyard | Discovered new exit (range 16) 98 | -11/Scrapyard | Entered Materials 230 | -10/Materials | Core integrity fell below 50% 236 | -10/Materials | Core integrity fell below 20% 243 | -10/Materials | Destroyed by S-10 Pest with Light Assault Rifle Last Messages --------------- R-06 Scavenger collects Flight Unit. Slammed into R-06 Scavenger. R-06 Scavenger knocked back. Mining Laser destroyed. System corrupted by crushing effect (+3). Connecting with Terminal... Electrolysis Chamber comes online. T-07 Excavator is excavating. Acquired 57 matter. U-05 Engineer lays Concrete. T-07 Excavator is excavating. U-05 Engineer lays Concrete. Ion Engine destroyed. T-07 Excavator is excavating. Wheel destroyed. Assault Rifle destroyed. Critical hit (Burn: +37). System corrupted: IFF burst signal emitted. Wheel destroyed. Com. Wheel destroyed. Map ----- +----------------------------------------------------+ | ?????????????????????# """ """ #?????????????????? | | ?????????????????????# #?????????????????? | | ?????????????????????# #???#???? ???????? | | ?????????????????????# ! ! #?? #??! #??????? | | ?????????????????????# #? # #??????? | | ?????????????????????####/##+### + ?????????? | | ?????????????????????## # #?????????????? | | ?????????????????????# #?????????????# | | ?????????????????????# # #?????????????# | | ?????????????????????#### ##########???????????# | | ????????????????????????# # * ############# | | ????????????????????????# # """ + %[ | | ????????????????????????# + "T" ######## | | ????????????????????????# g# #??????# """ | | ????????????????????????#gsg#% #??????# """ | | ????????????????????????# # """| #??????# """ | | ???????????? ???????????#s #! """ #??????# | | ??????????? ??????????# # """ #??????# | | ??????????? ????????# # #??????# | | ?????????? ???????# ##########??????# !! | | ????????? ####### #???????????????# !! | | ????????????""" #???????????????# ! | | ????????????""" #???????????????# | | ???????????"""" #???????????????# | | ????????? a #??????????###### | | ????????? @ #??????????# | | ??????????###############r #??????????# | | ????????????????????????# #??????????# | | ????????????????????????# #??????????# | | ????????????????????????# #??????????# !! | | ????????????????????????# ??????? != | | ????????????????????????# ?????? | | ????????????????????????# ?????? | | ????????????????????????# ####?????############# | | ????????????????????????? #????????????????????? | | ????????????????????????? #????????????????????? | | ????????????????????????? #????????????????????? | | ????????????????????????? ????????????????????? | | ????????????????????????? ????????????????????? | | ????????????????????????? ????????????????????? | | ????????????????????????? ?????????????????????? | | ?????????????????????????????????????????????????? | | ????????????????????????????????????????????????? | | ????????????????????????????????????????????????# | | ????????????????????????????????????????????????# | | ????????????????????????????????????????????????+ | | ?????????????????????????????????????????????????? | | ?????????????????????????????????????????????????T | | ????????????????????????????????????????????????#" | | ????????????????????????????????????????????????# | +----------------------------------------------------+ Best States ------------- Heat Dissipation 25 Energy Generation 10 Energy Capacity 250 Matter Stores 300 Matter Capacity 300 Sight Range 16 Terrain Scan Density 10 Evasion (%) 42 Item Schematics ----------------- None Robot Schematics ------------------ None Fabricated ------------ Nothing Repaired ---------- Nothing Studied --------- None Alien Tech Used ----------------- None Achievements -------------- None Challenges ------------ None Game ------ Seed TitaniumBladeLink Manual? 0 Play Time 00:09:57 Cumulative 12.8 hours Start 2026.07.08 @ 20:16:50 End 2026.07.08 @ 20:25:53 Sessions 1 Manual Loads 0 Difficulty Rogue Special Mode None Game No. 16 Rogue 16 Adventurer 0 Explorer 0 Win Type - Total 0 Types 0/0/0/0/0/0/0/0/0/0 Lore% 8 Gallery% 12 Achievement% 12 Wizard Run 0 Options --------- Layout 1 ASCII 0 Keyboard 0 Movement Mouse Keybinds 0 Fullscreen 1 Font 18/SmallcapsGlow Map View 51x41 Zoom Use 0% Tactical HUD 0 Map Filters NONE Filters NONE Steam 1 RUN: c498af47-37dc-49b2-802a-9ab238a10cfa